bitfinex-derivatives/quotes_SOLF0:USTF0_20250124
["timestamp","ask_amount","ask_price","bid_price","bid_amount"]
[1737706848561,3.84077637,262.2,262.14,0.0268564]
[1737706848758,3.8147,262.18,262.14,0.0268564]
[1737706850960,176.9825,262.19,262.17,3.8148]
[1737706853966,176.9825,262.19,262.18,3.8147]
[1737706855666,176.9825,262.19,262.18,9.62104489]
[1737706856770,176.9825,262.19,262.15,5.80634489]
[1737706858865,176.9825,262.19,262.14,0.0268564]
[1737706859064,1.2042,262.18,262.1,5.80634489]
[1737706859266,3.8157,262.11,262.07,5.80634489]
[1737706859570,180.7982,262.11,262.07,5.80634489]
[1737706860070,3.8159,262.1,262.07,5.80634489]
[1737706860270,176.9825,262.11,262.07,5.80634489]
[1737706860471,176.9825,262.09,262.07,5.80634489]
[1737706860972,176.9825,262.09,262.06,0.02459145]
[1737706861172,3.8163,262.07,262.04,5.80634489]
[1737706861469,3.8163,262.07,262.02,5.80634489]
[1737706861672,3.8163,262.07,261.98,9.08405451]
[1737706861873,3.8163,262.07,262.0,3.8172]
[1737706862071,176.9825,262.09,262.0,3.8172]
[1737706862373,0.02608321,262.07,262.02,0.02902093]
[1737706864171,0.02608321,262.07,262.02,9.11307544]
[1737706864367,0.02608321,262.07,262.06,9.08405451]
[1737706865774,0.02608321,262.07,262.03,3.8167]
[1737706865972,0.02608321,262.07,262.02,0.02902093]
[1737706866864,3.8166,262.05,262.02,0.02902093]
[1737706867070,0.02608321,262.07,262.02,0.02902093]
[1737706867771,0.02608321,262.07,262.05,3.8165]
[1737706869272,0.02608321,262.07,262.04,3.8167]
[1737706869876,0.02608321,262.07,262.05,3.8166]
[1737706873169,8.321e-05,262.07,262.05,3.8166]
[1737706873575,176.9825,262.16,262.03,10.40975451]
[1737706873774,176.9825,262.16,262.11,9.08405451]
[1737706874275,176.9825,262.16,262.14,3.8152]
[1737706876777,0.02545887,262.18,262.17,3.8148]
[1737706876778,5.887e-05,262.18,262.17,3.8148]
[1737706876976,176.9825,262.24,262.15,9.08405451]
[1737706878077,0.02693822,262.22,262.15,9.08405451]
[1737706878278,0.02693822,262.22,262.19,9.08405451]
[1737706878479,3.822e-05,262.22,262.19,9.08405451]
[1737706878877,3.822e-05,262.22,262.21,3.8142]
[1737706879980,3.822e-05,262.22,262.19,9.10954941]
[1737706879981,3.822e-05,262.22,262.19,0.0254949]
[1737706881682,3.822e-05,262.22,262.19,3.8399949]
[1737706882181,3.822e-05,262.22,262.19,0.0254949]
[1737706883482,3.8143,262.21,262.19,0.0254949]
[1737706883682,3.822e-05,262.22,262.19,0.0254949]
[1737706884178,3.81423822,262.22,262.19,0.0254949]
[1737706885183,176.9825,262.21,262.19,0.0254949]
[1737706888479,180.7968,262.21,262.19,0.0254949]
[1737706888681,176.9825,262.2,262.07,9.08405451]
[1737706888878,3.8156,262.12,262.04,3.8167]
[1737706889186,176.9825,262.11,261.98,9.08405451]
[1737706889885,0.02694907,262.07,262.03,3.8168]
[1737706890988,0.02694907,262.07,262.04,3.8167]
[1737706891584,0.02694907,262.07,262.05,3.8165]
[1737706891789,176.9825,262.11,262.06,9.08405451]
[1737706892190,176.9825,262.11,262.07,3.8162]
[1737706893092,176.9825,262.11,262.09,3.8159]
[1737706896997,176.9825,262.11,262.1,3.8158]
[1737706898093,0.02664211,262.12,262.07,0.02640627]
[1737706898299,176.9825,262.18,262.1,9.08405451]
[1737706898499,176.9825,262.32,262.17,9.08405451]
[1737706898698,176.9825,262.31,262.17,9.08405451]
[1737706898998,176.9825,262.3,262.17,9.08405451]
[1737706899197,176.9825,262.3,262.21,9.08405451]
[1737706899500,176.9825,262.3,262.21,9.11116276]
[1737706899501,0.0283135,262.26,262.21,9.11116276]
[1737706900691,0.0283135,262.26,262.25,3.8137]
[1737706901193,1.35e-05,262.26,262.25,12.89775451]
[1737706905403,178.222,262.4,262.25,9.08405451]
[1737706905603,176.9825,262.39,262.25,9.08405451]
[1737706906303,176.9825,262.39,262.34,3.8123]
[1737706906698,176.9825,262.39,262.29,9.11214594]
[1737706906905,176.9825,262.39,262.35,3.8122]
[1737706907108,176.9825,262.39,262.33,9.08405451]
[1737706907304,176.9825,262.52,262.42,3.8111]
[1737706907501,176.9825,262.51,262.37,9.08405451]
[1737706907705,176.9825,262.51,262.41,0.02667826]
[1737706907905,9.08405451,262.49,262.3,3.8129]
[1737706908199,9.08405451,262.49,262.33,9.08405451]
[1737706908200,3.8106,262.47,262.33,9.08405451]
[1737706908509,3.8106,262.47,262.37,3.8119]
[1737706908806,3.8106,262.47,262.33,9.08405451]
[1737706909007,0.02764,262.45,262.39,0.02757798]
[1737706909204,0.02764,262.45,262.41,3.8113]
[1737706909409,0.02764,262.45,262.39,0.02757798]
[1737706911610,0.02764,262.45,262.4,3.8114]
[1737706912313,0.02764,262.45,262.39,0.02757798]
[1737706912314,0.02764,262.45,262.39,3.83917798]
[1737706914116,0.02764,262.45,262.4,3.8114]
[1737706916519,0.02764,262.45,262.39,0.02757798]
[1737706916818,0.02764,262.45,262.41,3.8113]
[1737706917817,0.02764,262.45,262.39,3.83907798]
[1737706918016,0.02764,262.45,262.39,0.02757798]
[1737706918918,0.02764,262.45,262.4,3.8115]
[1737706919524,0.02764,262.45,262.41,3.8113]
[1737706919715,3.83844,262.45,262.39,0.02757798]
[1737706919916,0.02764,262.45,262.39,0.02757798]
[1737706920614,9.11169451,262.45,262.29,3.813]
[1737706920822,3.8117,262.39,262.28,9.08405451]
[1737706921117,176.9825,262.44,262.32,3.8125]
[1737706921318,2.4969,262.43,262.28,9.08405451]
[1737706921517,3.8112,262.42,262.28,9.08405451]
[1737706921713,0.02431925,262.38,262.33,0.02778221]
[1737706922520,0.02431925,262.38,262.36,12.89605451]
[1737706924620,176.9825,262.44,262.36,9.08405451]
[1737706924925,176.9825,262.44,262.43,3.811]
[1737706925222,176.9825,262.44,262.4,9.08405451]
[1737706925422,176.9825,262.44,262.42,3.8111]
[1737706926425,176.9825,262.44,262.41,3.8113]
[1737706926819,176.9825,262.44,262.4,9.10897969]
[1737706927019,176.9825,262.44,262.42,3.8111]
[1737706929725,657.9825,262.44,262.43,3.811]
[1737706929918,0.02427687,262.46,262.4,9.10897969]
[1737706930224,0.02427687,262.46,262.44,3.8108]
[1737706930722,0.02427687,262.46,262.4,9.10897969]
[1737706931825,0.02427687,262.46,262.41,3.8112]
[1737706932121,176.9825,262.45,262.4,0.02492518]
[1737706932417,176.9825,262.45,262.28,9.08405451]
[1737706932621,186.06655451,262.44,262.28,9.08405451]
[1737706933016,176.9825,262.43,262.24,9.08405451]
[1737706933422,0.02512354,262.36,262.31,0.0258101]
[1737706933821,0.02512354,262.36,262.32,9.08405451]
[1737706935124,0.02512354,262.36,262.34,3.8123]
[1737706937323,176.9825,262.43,262.32,9.08405451]
[1737706937527,176.9825,262.43,262.41,3.8113]
[1737706939527,0.02590104,262.45,262.42,9.08405451]
[1737706939730,0.02590104,262.45,262.43,3.811]
[1737706940228,176.9825,262.56,262.49,3.8101]
[1737706940521,176.9825,262.55,262.49,3.8101]
[1737706941226,176.9825,262.55,262.5,3.81]
[1737706941623,176.9825,262.55,262.49,0.02654984]
[1737706943130,176.9825,262.55,262.53,3.8096]
[1737706943829,176.9825,262.55,262.51,12.89385451]
[1737706944031,176.9825,262.55,262.51,3.8098]
[1737706946429,176.9825,262.55,262.53,3.8095]
[1737706947728,176.9825,262.55,262.51,3.8098]
[1737706947930,176.9825,262.55,262.49,0.02654984]
[1737706948430,176.9825,262.55,262.51,9.08405451]
[1737706949129,176.9825,262.55,262.53,3.8095]
[1737706949927,176.9825,262.55,262.51,12.89385451]
[1737706950129,176.9825,262.55,262.51,9.08405451]
[1737706951128,176.9825,262.55,262.53,3.8096]
[1737706951433,176.9825,262.55,262.49,0.02654984]
[1737706952034,3.8095,262.54,262.49,0.02654984]
[1737706953637,3.8099,262.51,262.49,0.02654984]
[1737706954136,176.9825,262.53,262.49,0.02654984]
[1737706954936,176.9825,262.53,262.49,3.83664984]
[1737706956837,176.9825,262.53,262.49,0.02654984]
[1737706957032,176.9825,262.53,262.5,3.81]
[1737706958239,176.9825,262.53,262.49,0.02654984]
[1737706958437,176.9825,262.53,262.52,3.8097]
[1737706960838,176.9825,262.6,262.54,3.8094]
[1737706961241,176.9825,262.6,262.55,3.8093]
[1737706962438,176.9825,262.6,262.56,3.8092]
[1737706962640,176.9825,262.6,262.54,0.02711283]
[1737706962839,180.7911,262.6,262.54,0.02711283]
[1737706963039,180.7911,262.6,262.55,3.8093]
[1737706964542,176.9825,262.6,262.55,3.8092]
[1737706964741,176.9825,262.6,262.54,0.02711283]
[1737706966139,176.9825,262.6,262.56,3.8091]
[1737706968744,180.7912,262.6,262.54,3.83651283]
[1737706969542,661.7912,262.6,262.54,3.83651283]
[1737706969841,396.61229472,262.6,262.59,5.78484536]
[1737706970045,1.2146,262.67,262.59,5.78484536]
[1737706970545,1.2146,262.67,262.6,0.02835896]
[1737706970946,5.0222,262.67,262.6,0.02835896]
[1737706971244,1.2146,262.67,262.6,0.02835896]
[1737706971646,3.8077,262.66,262.6,0.02835896]
[1737706972346,1.2146,262.67,262.6,0.02835896]
[1737706972547,1.2146,262.67,262.56,5.78484536]
[1737706972942,1.2146,262.67,262.59,5.78484536]
[1737706973744,0.02440586,262.66,262.6,0.02511177]
[1737706974048,0.02440586,262.66,262.6,3.83351177]
[1737706975750,5.78484536,262.65,262.6,3.83351177]
[1737706976249,9.59274536,262.65,262.6,3.83351177]
[1737706976449,5.78484536,262.62,262.53,5.78484536]
[1737706976653,3.8086,262.6,262.55,3.8093]
[1737706977046,1.2399,262.61,262.5,5.78484536]
[1737706977251,3.8087,262.59,262.53,3.8095]
[1737706977451,3.8087,262.59,262.5,5.78484536]
[1737706977652,3.83606432,262.59,262.53,0.02583925]
[1737706978754,0.02736432,262.59,262.55,3.8093]
[1737706980546,0.02736432,262.59,262.53,0.02583925]
[1737706980750,0.02736432,262.59,262.44,33.30192507]
[1737706980953,9.04915485,262.57,262.43,9.04915485]
[1737706981150,1.3325,262.56,262.43,9.04915485]
[1737706981346,3.8099,262.51,262.47,3.8104]
[1737706981552,1.3325,262.56,262.39,9.04915485]
[1737706981755,176.9825,262.55,262.39,9.04915485]
[1737706981947,0.02542252,262.5,262.45,0.02795166]
[1737706982152,0.02542252,262.5,262.48,9.04915485]
[1737706982349,0.02542252,262.5,262.49,3.8102]
[1737706984147,1.2399,262.61,262.57,3.809]
[1737706985659,0.02420023,262.62,262.58,3.8089]
[1737706986449,0.02420023,262.62,262.6,3.8085]
[1737706987755,0.02420023,262.62,262.58,3.8088]
[1737706989754,0.02420023,262.62,262.56,0.02685938]
[1737706990059,0.02420023,262.62,262.6,3.8085]
[1737706991360,11.47,262.84,262.56,0.02685938]
[1737706991361,182.24419698,262.86,262.67,9.04915485]
[1737706991563,3.7046,262.83,262.67,9.04915485]
[1737706991763,9.04915485,262.81,262.63,9.04915485]
[1737706992461,0.02857881,262.75,262.71,3.8069]
[1737706992858,0.02857881,262.75,262.7,0.0256669]
[1737706993460,0.02857881,262.75,262.71,3.8069]
[1737706993661,0.02857881,262.75,262.71,9.04915485]
[1737706994257,0.02857881,262.75,262.73,3.8066]
[1737706996458,0.02857881,262.75,262.71,9.04915485]
[1737706996757,0.02857881,262.75,262.71,12.85605485]
[1737706996961,0.02857881,262.75,262.71,9.04915485]
[1737706997162,0.02857881,262.75,262.72,3.8068]
[1737706997462,0.02857881,262.75,262.71,9.04915485]
[1737706998353,3.83507881,262.75,262.7,0.0256669]
[1737706998855,0.02857881,262.75,262.7,0.0256669]
[1737706999461,176.9825,262.74,262.7,0.0256669]
[1737707000254,3.8071,262.71,262.63,9.04915485]
[1737707000459,1.2889,262.73,262.63,9.04915485]
[1737707000764,9.04915485,262.81,262.63,9.04915485]
[1737707001063,1.2889,262.8,262.63,9.04915485]
[1737707001464,0.02413802,262.74,262.69,0.02652362]
[1737707001857,0.02413802,262.74,262.72,9.04915485]
[1737707002055,0.02413802,262.74,262.73,3.8067]
[1737707004059,176.9825,262.85,262.72,9.04915485]
[1737707004264,1.2821,262.89,262.82,3.8054]
[1737707004864,1.2821,262.89,262.76,9.04915485]
[1737707005370,0.02693943,262.85,262.8,0.02446905]
[1737707006974,3.83193943,262.85,262.8,0.02446905]
[1737707010878,3.83193943,262.85,262.8,3.83016905]
[1737707011177,0.02693943,262.85,262.8,0.02446905]
[1737707011377,3.8054,262.82,262.8,0.02446905]
[1737707011578,0.02693943,262.85,262.72,9.04915485]
[1737707011776,9.04915485,262.86,262.68,9.04915485]
[1737707011972,3.8063,262.76,262.68,9.04915485]
[1737707012176,9.04915485,262.86,262.71,3.8069]
[1737707012674,3.8062,262.77,262.71,3.8069]
[1737707012878,3.8062,262.77,262.76,0.02590388]
[1737707013079,0.02799119,262.81,262.68,9.04915485]
[1737707013281,3.8064,262.75,262.69,3.8073]
[1737707013581,9.04915485,262.86,262.68,9.04915485]
[1737707013880,3.8067,262.73,262.68,12.85655485]
[1737707014184,9.04915485,262.82,262.68,9.04915485]
[1737707014380,0.02695632,262.73,262.68,9.07366899]
[1737707015080,3.8069,262.72,262.68,0.02451414]
[1737707015282,0.02695632,262.73,262.68,0.02451414]
[1737707015780,0.02695632,262.73,262.71,3.8069]
[1737707016281,5.632e-05,262.73,262.72,9.04915485]
[1737707016579,176.9825,262.88,262.72,9.04915485]
[1737707016776,176.9825,262.88,262.68,0.02451414]
[1737707016777,176.9825,262.88,262.76,9.04915485]
[1737707017679,0.02599719,262.85,262.79,0.02842384]
[1737707018081,0.02599719,262.85,262.8,3.8056]
[1737707020381,0.02599719,262.85,262.79,0.02842384]
[1737707021077,3.8054,262.82,262.79,0.02842384]
[1737707021581,0.02599719,262.85,262.79,0.02842384]
[1737707021784,3.8056,262.81,262.79,0.02842384]
[1737707022179,3.83099719,262.85,262.79,0.02842384]
[1737707022479,0.02599719,262.85,262.79,0.02842384]
[1737707023582,0.02599719,262.85,262.81,3.8054]
[1737707025483,0.02599719,262.85,262.79,0.02842384]
[1737707027078,0.02599719,262.85,262.81,3.8055]
[1737707027285,0.02599719,262.85,262.79,0.02842384]
[1737707027484,0.02599719,262.85,262.8,9.04915485]
[1737707027985,0.02599719,262.85,262.84,9.04915485]
[1737707028381,0.02599719,262.85,262.83,3.8051]
[1737707029687,0.02599719,262.85,262.81,3.8054]
[1737707030376,0.02599719,262.85,262.81,3.8055]
[1737707032487,0.02599719,262.85,262.82,3.8054]
[1737707032988,0.02599719,262.85,262.83,9.04915485]
[1737707033286,0.02599719,262.85,262.84,3.8051]
[1737707033887,3.8038,262.93,262.86,3.8047]
[1737707034689,3.8039,262.93,262.86,3.8047]
[1737707035090,0.02432457,262.92,262.87,0.02676901]
[1737707035291,0.02432457,262.92,262.87,3.83146901]
[1737707035590,0.02432457,262.92,262.87,0.02676901]
[1737707036190,0.02432457,262.92,262.87,3.83136901]
[1737707036385,0.02432457,262.92,262.87,0.02676901]
[1737707037586,3.8045,262.88,262.87,0.02676901]
[1737707039189,3.8043,262.9,262.87,0.02676901]
[1737707039494,0.02432457,262.92,262.87,0.02676901]
[1737707039885,0.02432457,262.92,262.9,3.8041]
[1737707040089,2.457e-05,262.92,262.9,3.8041]
[1737707040285,2.457e-05,262.92,262.87,3.83136901]
[1737707040689,2.457e-05,262.92,262.87,0.02676901]
[1737707040890,3.80402457,262.92,262.87,0.02676901]
[1737707041193,2.457e-05,262.92,262.87,0.02676901]
[1737707042392,3.8044,262.89,262.87,0.02676901]
[1737707043293,3.8043,262.9,262.87,0.02676901]
[1737707043489,10.33815485,262.91,262.73,9.04915485]
[1737707044591,0.02438451,262.85,262.79,0.0292227]
[1737707045094,3.8052,262.84,262.79,0.0292227]
[1737707045793,3.8057,262.8,262.79,0.0292227]
[1737707045998,2.4865,262.83,262.69,9.04915485]
[1737707046193,1.289,262.91,262.77,9.04915485]
[1737707046499,2.5067,262.9,262.77,9.04915485]
[1737707046697,2.5067,262.9,262.79,3.8057]
[1737707046698,3.8049,262.86,262.79,3.8057]
[1737707046899,3.8049,262.86,262.77,9.04915485]
[1737707047198,0.02816826,262.85,262.81,9.04915485]
[1737707047394,1.2592,262.9,262.84,3.805]
[1737707047597,0.02608844,262.86,262.81,9.04915485]
[1737707048300,0.02608844,262.86,262.85,3.8049]
[1737707048494,0.02608844,262.86,262.81,9.04915485]
[1737707048897,0.02608844,262.86,262.84,3.8051]
[1737707049600,0.02608844,262.86,262.82,3.8053]
[1737707049796,0.02608844,262.86,262.81,9.04915485]
[1737707051596,0.02608844,262.86,262.81,12.85455485]
[1737707051998,0.02608844,262.86,262.8,0.02753198]
[1737707051999,0.02608844,262.86,262.85,12.85405485]
[1737707053903,0.02608844,262.86,262.85,9.04915485]
[1737707054103,0.02608844,262.86,262.83,3.8051]
[1737707054303,0.02608844,262.86,262.81,9.04915485]
[1737707054605,0.02608844,262.86,262.82,3.8053]
[1737707054801,0.02608844,262.86,262.8,0.02753198]
[1737707056604,3.8053,262.83,262.8,0.02753198]
[1737707057205,3.8054,262.82,262.8,0.02753198]
[1737707060406,3.8063,262.76,262.7,3.807]
[1737707060710,12.96815485,262.85,262.67,9.04915485]
[1737707060902,3.8064,262.75,262.69,3.8072]
[1737707061100,176.9825,262.84,262.71,9.04915485]
[1737707061707,0.02915027,262.8,262.75,0.02853838]
[1737707061913,3.8058,262.79,262.75,0.02853838]
[1737707062608,0.02915027,262.8,262.75,0.02853838]
[1737707064214,3.8062,262.77,262.75,0.02853838]
[1737707066114,3.8067,262.74,262.68,3.8073]
[1737707066311,9.04915485,262.81,262.63,9.04915485]
[1737707066618,9.04915485,262.77,262.59,9.04915485]
[1737707066819,9.04915485,262.73,262.58,3.8088]
[1737707067017,2.4751,262.72,262.58,3.8088]
[1737707067215,3.8076,262.67,262.63,0.0285153]
[1737707067511,0.02578783,262.68,262.63,0.0285153]
[1737707067712,3.8076,262.67,262.63,0.0285153]
[1737707068115,0.02578783,262.68,262.63,0.0285153]
[1737707069217,0.02578783,262.68,262.63,9.07767015]
[1737707069614,0.02578783,262.68,262.66,3.8076]
[1737707070817,0.02578783,262.68,262.67,9.04915485]
[1737707071919,0.02578783,262.68,262.66,3.8076]
[1737707076232,1.2624,262.84,262.65,14.45691772]
[1737707077332,3.806,262.78,262.72,3.8067]
[1737707077630,0.02716567,262.77,262.72,3.83490866]
[1737707077828,0.02716567,262.77,262.72,0.02820866]
[1737707078529,0.02716567,262.77,262.76,3.8062]
[1737707087744,0.02716567,262.77,262.72,0.02820866]
[1737707088839,0.02716567,262.77,262.76,3.8059]
[1737707092538,0.02716567,262.77,262.72,0.02820866]
[1737707094144,0.02716567,262.77,262.73,3.8063]
[1737707094445,0.02716567,262.77,262.72,0.02820866]
[1737707095943,0.02716567,262.77,262.72,9.06348975]
[1737707096345,0.02716567,262.77,262.76,3.8059]
[1737707102145,0.02716567,262.77,262.76,12.84118109]
[1737707102640,0.02716567,262.77,262.75,3.8061]
[1737707102841,0.02716567,262.77,262.72,9.06348975]
[1737707103740,0.02716567,262.77,262.76,3.8059]
[1737707104347,1.3308,262.87,262.76,9.03528109]
[1737707104546,1.3308,262.87,262.8,9.03528109]
[1737707105543,0.02889412,262.86,262.84,3.8048]
[1737707107447,0.02889412,262.86,262.85,3.8046]
[1737707108654,2.4938,263.04,262.84,9.03528109]
[1737707108854,2.4938,263.04,262.9,9.03528109]
[1737707109856,0.02558112,263.0,262.94,0.02830893]
[1737707110354,3.8031,262.96,262.94,0.02830893]
[1737707110553,0.02558112,263.0,262.86,9.03528109]
[1737707110753,9.03528109,263.03,262.86,9.03528109]
[1737707111060,9.03528109,263.03,262.88,3.8041]
[1737707111656,0.02474116,262.98,262.93,0.02554505]
[1737707112055,3.803,262.97,262.93,0.02554505]
[1737707112250,0.02474116,262.98,262.93,0.02554505]
[1737707112755,3.8033,262.95,262.93,0.02554505]
[1737707113460,3.8041,262.89,262.81,9.03528109]
[1737707113955,9.03528109,262.99,262.81,9.03528109]
[1737707114156,3.8042,262.88,262.83,3.8049]
[1737707114556,3.83086921,262.88,262.83,3.83042842]
[1737707115156,0.02666921,262.88,262.83,0.02552842]
[1737707116858,0.02666921,262.88,262.83,3.83042842]
[1737707117058,0.02666921,262.88,262.85,9.03528109]
[1737707117455,0.02666921,262.88,262.86,3.8044]
[1737707119766,0.02666921,262.88,262.84,3.8047]
[1737707120065,0.02666921,262.88,262.83,0.02552842]
[1737707120961,0.02666921,262.88,262.84,3.8047]
[1737707121162,0.02666921,262.88,262.83,0.02552842]
[1737707121366,3.83086921,262.88,262.83,0.02552842]
[1737707122468,3.8044,262.87,262.83,0.02552842]
[1737707124072,3.8047,262.85,262.83,0.02552842]
[1737707124370,0.02666921,262.88,262.73,9.03528109]
[1737707124569,3.8051,262.82,262.73,9.03528109]
[1737707125365,3.8053,262.81,262.76,3.8059]
[1737707125560,0.02433279,262.8,262.76,3.8059]
[1737707125869,3.8309948,262.81,262.76,3.8059]
[1737707126263,0.0256948,262.81,262.75,0.02499882]
[1737707126864,0.0256948,262.81,262.79,3.8055]
[1737707129470,0.0256948,262.81,262.75,0.02499882]
[1737707130263,0.0256948,262.81,262.8,3.8053]
[1737707132676,0.0256948,262.81,262.75,0.02499882]
[1737707133471,3.8055,262.8,262.75,0.02499882]
[1737707133671,0.0256948,262.81,262.75,0.02499882]
[1737707135875,3.8309948,262.81,262.75,3.83099882]
[1737707136076,3.8309948,262.81,262.75,0.02499882]
[1737707136077,0.0256948,262.81,262.75,0.02499882]
[1737707136567,0.0256948,262.81,262.79,3.8054]
[1737707139980,9.48e-05,262.81,262.79,3.8054]
[1737707140280,5.0872,262.93,262.77,9.03528109]
[1737707140475,1.2837,262.93,262.82,9.03528109]
[1737707140880,3.8036,262.92,262.82,9.03528109]
[1737707141279,0.02547897,262.9,262.84,0.02910743]
[1737707141582,0.02547897,262.9,262.89,3.804]
[1737707141886,0.02547897,262.9,262.88,3.8041]
[1737707142780,0.02547897,262.9,262.88,3.52296]
[1737707143377,0.02547897,262.9,262.84,0.02910743]
[1737707146079,0.02547897,262.9,262.88,3.8042]
[1737707147574,7.897e-05,262.9,262.88,3.8042]
[1737707158083,7.897e-05,262.9,262.84,3.83380743]
[1737707158289,7.897e-05,262.9,262.84,0.02910743]
[1737707158886,7.897e-05,262.9,262.87,3.8043]
[1737707160093,7.897e-05,262.9,262.88,3.8042]
[1737707161989,2.5742,263.06,262.86,9.03528109]
[1737707161990,2.5742,263.06,262.99,3.8026]
[1737707162790,2.5742,263.06,262.94,9.03528109]
[1737707163095,0.02509871,263.03,262.97,0.02660289]
[1737707163990,0.02509871,263.03,262.99,9.03528109]
[1737707164190,180.8264,263.21,262.99,18.07056218]
[1737707164391,3.8439,263.21,263.08,9.03528109]
[1737707165101,3.8439,263.21,263.13,9.03528109]
[1737707165397,0.02796292,263.17,263.13,9.03528109]
[1737707165795,5.76260846,263.27,263.16,5.76260846]
[1737707165998,0.02406154,263.18,263.16,5.76260846]
[1737707166191,5.76260846,263.24,263.13,5.76260846]
[1737707166395,0.02494311,263.2,263.14,0.02878947]
[1737707168601,0.02494311,263.2,263.14,3.82908947]
[1737707169303,0.02494311,263.2,263.14,0.02878947]
[1737707170703,0.02494311,263.2,263.16,9.00689625]
[1737707171404,0.02494311,263.2,263.15,1.3046]
[1737707171593,0.02494311,263.2,263.14,0.02878947]
[1737707172599,3.8003,263.16,263.14,0.02878947]
[1737707172801,0.02494311,263.2,263.14,0.02878947]
[1737707173196,3.8002,263.16,263.14,0.02878947]
[1737707173698,3.8011,263.1,263.03,3.802]
[1737707173903,9.00689625,263.16,263.0,10.31149625]
[1737707174096,9.00689625,263.16,263.0,9.00689625]
[1737707174298,9.00689625,263.17,263.01,9.00689625]
[1737707175003,0.02492159,263.12,263.06,0.02898639]
[1737707176404,0.02492159,263.12,263.1,3.801]
[1737707177700,0.02492159,263.12,263.06,3.83048639]
[1737707177903,0.02492159,263.12,263.06,0.02898639]
[1737707178701,0.02492159,263.12,263.07,3.8013]
[1737707178904,0.02492159,263.12,263.06,0.02898639]
[1737707180508,2.159e-05,263.12,263.1,3.801]
[1737707182911,2.159e-05,263.12,263.08,3.8012]
[1737707183304,2.159e-05,263.12,263.06,0.02898639]
[1737707184716,2.159e-05,263.12,263.07,3.8014]
[1737707185118,2.159e-05,263.12,263.06,0.02898639]
[1737707186017,2.159e-05,263.12,263.07,3.8014]
[1737707186419,2.159e-05,263.12,263.06,0.02898639]
[1737707186620,2.159e-05,263.12,263.09,3.8011]
[1737707186917,2.159e-05,263.12,263.06,0.02898639]
[1737707187315,2.159e-05,263.12,263.07,3.8013]
[1737707187516,2.159e-05,263.12,263.06,0.02898639]
[1737707188115,2.159e-05,263.12,263.07,3.8014]
[1737707188320,2.159e-05,263.12,263.06,0.02898639]
[1737707188716,2.159e-05,263.12,263.06,3.83048639]
[1737707189513,3.80082159,263.12,263.06,0.02898639]
[1737707190319,2.159e-05,263.12,263.07,3.8014]
[1737707191215,3.80082159,263.12,263.07,3.8014]
[1737707191415,9.00689625,263.1,263.06,0.02898639]
[1737707191712,3.8013,263.08,263.06,0.02898639]
[1737707192318,9.00689625,263.1,262.92,9.00689625]
[1737707192620,9.00689625,263.06,262.89,1.2251]
[1737707193012,3.8026,263.0,262.93,3.8034]
[1737707193216,3.8026,263.0,262.89,1.2251]
[1737707193416,0.02862139,262.98,262.93,0.02469646]
[1737707195124,0.02862139,262.98,262.95,3.8031]
[1737707195626,3.83142139,262.98,262.93,3.82809646]
[1737707195825,3.83142139,262.98,262.93,0.02469646]
[1737707196523,3.803,262.97,262.93,0.02469646]
[1737707197120,3.8032,262.95,262.93,0.02469646]
[1737707197316,0.02862139,262.98,262.82,9.00689625]
[1737707197317,9.03551764,262.98,262.82,9.00689625]
[1737707197525,2.5368,262.97,262.82,9.00689625]
[1737707198619,3.8038,262.91,262.87,0.02489482]
[1737707199525,0.02512282,262.92,262.9,3.8039]
[1737707202029,0.02512282,262.92,262.88,3.8041]
[1737707202227,3.82882282,262.92,262.87,0.02489482]
[1737707202629,3.82882282,262.92,262.87,3.82909482]
[1737707203023,3.82882282,262.92,262.87,0.02489482]
[1737707203527,3.8038,262.91,262.87,0.02489482]
[1737707204625,3.8042,262.88,262.87,0.02489482]
[1737707205131,0.02512282,262.92,262.87,0.02489482]
[1737707205825,0.02512282,262.92,262.87,3.82929482]
[1737707206030,0.02512282,262.92,262.87,0.02489482]
[1737707207231,0.02512282,262.92,262.89,3.8039]
[1737707207534,0.02512282,262.92,262.87,0.02489482]
[1737707207827,3.7993,263.23,263.12,3.8006]
[1737707208129,3.8636,263.24,263.09,9.00689625]
[1737707208525,3.8636,263.24,263.09,3.8011]
[1737707208526,3.7997,263.2,263.09,3.8011]
[1737707208726,3.7997,263.2,263.05,9.00689625]
[1737707209030,0.02605832,263.17,263.12,0.02577222]
[1737707214829,0.02605832,263.17,263.12,320.02577222]
[1737707216931,3.8005,263.14,263.12,320.02577222]
[1737707218730,3.8003,263.16,263.12,320.02577222]
[1737707218934,0.02605832,263.17,263.12,320.02577222]